bitfinex-derivatives/quotes_BTCF0:USTF0_20240907
["timestamp","ask_amount","ask_price","bid_price","bid_amount"]
[1725678435300,1.53828397,53845.0,53835.0,0.05567488]
[1725678435301,0.092897,53836.0,53835.0,0.05567488]
[1725678435508,0.1,53835.0,53833.0,0.05567488]
[1725678435701,0.1,53835.0,53833.0,0.07928671]
[1725678435900,0.27819837,53834.0,53833.0,0.07928671]
[1725678436099,0.37109937,53834.0,53833.0,0.02361183]
[1725678436302,0.37009937,53834.0,53830.0,0.05567488]
[1725678436503,0.1,53832.0,53830.0,0.05567488]
[1725678436705,0.11296,53832.0,53830.0,0.05567488]
[1725678436919,0.27823545,53831.0,53830.0,0.05567488]
[1725678437105,0.29119545,53831.0,53829.0,0.092909]
[1725678437302,0.28919545,53831.0,53829.0,0.14858388]
[1725678437611,0.28919545,53831.0,53830.0,0.005]
[1725678438310,0.38919545,53831.0,53830.0,0.011]
[1725678438507,0.48210145,53831.0,53830.0,0.011]
[1725678438814,1.63942145,53831.0,53830.0,0.011]
[1725678439012,1.63942145,53831.0,53830.0,0.006]
[1725678439210,1.63942145,53831.0,53830.0,0.011]
[1725678440007,1.72942145,53831.0,53830.0,0.011]
[1725678440207,1.63651545,53831.0,53818.0,0.092927]
[1725678440412,0.19,53820.0,53818.0,0.092927]
[1725678440916,0.27819331,53819.0,53818.0,0.092927]
[1725678441406,0.29015331,53819.0,53818.0,0.092927]
[1725678441613,0.29015331,53819.0,53813.0,0.10214242]
[1725678441808,0.29015331,53819.0,53809.0,0.24567488]
[1725678441809,0.29015331,53819.0,53814.0,0.092935]
[1725678442213,0.28645331,53819.0,53814.0,0.092935]
[1725678443505,0.28645331,53819.0,53814.0,0.002]
[1725678443704,0.28645331,53819.0,53816.0,0.092932]
[1725678443705,0.28845331,53819.0,53816.0,0.092932]
[1725678444403,0.28845331,53819.0,53814.0,0.002]
[1725678445111,0.28645331,53819.0,53814.0,0.004]
[1725678446108,0.28645331,53819.0,53814.0,0.002]
[1725678446308,0.28745331,53819.0,53814.0,0.002]
[1725678446811,0.28645331,53819.0,53814.0,0.004]
[1725678447012,0.29016331,53819.0,53814.0,0.004]
[1725678450514,0.29016331,53819.0,53814.0,0.002]
[1725678451705,0.29016331,53819.0,53814.0,0.094935]
[1725678452912,0.09293,53818.0,53814.0,0.002]
[1725678453115,0.092934,53815.0,53814.0,0.002]
[1725678453517,0.38351372,53815.0,53814.0,0.002]
[1725678454205,0.38351372,53815.0,53814.0,0.003]
[1725678454608,0.38351372,53815.0,53809.0,0.02397771]
[1725678454609,0.29057972,53815.0,53809.0,0.21397771]
[1725678454812,0.29057972,53815.0,53814.0,0.003]
[1725678456914,0.29157972,53815.0,53814.0,0.002]
[1725678457621,0.29057972,53815.0,53814.0,0.002]
[1725678457824,0.29057972,53815.0,53814.0,0.003]
[1725678462825,0.29057972,53815.0,53814.0,0.15160988]
[1725678463123,0.29057972,53815.0,53814.0,0.17016533]
[1725678463513,0.29057972,53815.0,53814.0,0.095935]
[1725678463833,0.29057972,53815.0,53814.0,0.17016533]
[1725678464212,0.29057972,53815.0,53814.0,0.095935]
[1725678465220,0.29057972,53815.0,53814.0,0.33034598]
[1725678465723,0.29057972,53815.0,53814.0,0.33034677]
[1725678466219,0.29057972,53815.0,53814.0,0.23752282]
[1725678467117,0.29057972,53815.0,53814.0,0.79500282]
[1725678467326,0.05362928,53815.0,53814.0,1.56732492]
[1725678468129,0.05362928,53815.0,53814.0,1.75732492]
[1725678468524,0.05362928,53815.0,53814.0,1.15732492]
[1725678469223,0.04827897,53815.0,53814.0,1.15732492]
[1725678469832,0.04827897,53815.0,53814.0,1.16658133]
[1725678471820,0.04827897,53815.0,53814.0,0.60910133]
[1725678473524,0.00868897,53815.0,53814.0,0.60910133]
[1725678475416,0.00868897,53815.0,53814.0,0.60907276]
[1725678475824,0.49322959,53830.0,53824.0,0.092918]
[1725678476029,0.419409,53830.0,53829.0,0.0556887]
[1725678476332,0.38567404,53830.0,53827.0,0.07425161]
[1725678477331,0.39967404,53830.0,53829.0,0.0556751]
[1725678478225,0.40967404,53830.0,53829.0,0.0556751]
[1725678478629,0.40967404,53830.0,53828.0,0.0556751]
[1725678479019,0.41367404,53830.0,53829.0,0.001]
[1725678479533,0.39967404,53830.0,53829.0,0.001]
[1725678479727,0.39967404,53830.0,53828.0,0.0556751]
[1725678480034,0.41367404,53830.0,53828.0,0.0566751]
[1725678481522,0.41367404,53830.0,53826.0,0.092914]
[1725678481523,0.41367404,53830.0,53829.0,0.001]
[1725678482325,0.39967404,53830.0,53827.0,0.1485881]
[1725678482520,0.0563,53829.0,53828.0,0.001]
[1725678482920,0.33392878,53829.0,53828.0,0.001]
[1725678483126,0.34689878,53829.0,53827.0,0.092913]
[1725678483323,0.34589878,53829.0,53827.0,0.092913]
[1725678483821,0.62880878,53829.0,53827.0,0.092913]
[1725678484024,0.0608,53828.0,53827.0,0.092913]
[1725678484431,0.3510104,53828.0,53827.0,0.092913]
[1725678485132,0.3500104,53828.0,53827.0,0.092913]
[1725678485827,0.3630104,53828.0,53827.0,0.093913]
[1725678487032,0.3770104,53828.0,53827.0,0.093913]
[1725678488926,0.3172104,53828.0,53827.0,0.093913]
[1725678489123,0.3172104,53828.0,53827.0,0.1495881]
[1725678490033,0.3172104,53828.0,53827.0,0.26816461]
[1725678490535,0.3172104,53828.0,53827.0,0.193913]
[1725678491734,0.3172104,53828.0,53827.0,0.101]
[1725678492932,0.3172104,53828.0,53827.0,0.193913]
[1725678499347,0.3172104,53828.0,53827.0,0.33546829]
[1725678499734,0.3172104,53828.0,53827.0,0.43744002]
[1725678499942,0.3172104,53828.0,53827.0,0.34465395]
[1725678501943,0.3172104,53828.0,53827.0,0.4374365]
[1725678502139,0.3172104,53828.0,53827.0,0.34465395]
[1725678502842,0.3172104,53828.0,53827.0,0.43743575]
[1725678503146,0.027,53828.0,53827.0,0.34465395]
[1725678503341,0.07382059,53839.0,53827.0,1.61335136]
[1725678503553,0.07382059,53839.0,53838.0,0.05566988]
[1725678503745,0.36474471,53839.0,53837.0,0.05566988]
[1725678503946,0.01297,53839.0,53837.0,0.05566988]
[1725678504151,0.08679059,53839.0,53838.0,0.05566988]
[1725678504538,0.30298749,53839.0,53837.0,0.15566988]
[1725678505251,0.28998749,53839.0,53837.0,0.15566988]
[1725678505442,0.30398749,53839.0,53838.0,0.001]
[1725678506245,0.31598749,53839.0,53838.0,0.001]
[1725678506948,0.29798749,53839.0,53838.0,0.001]
[1725678507945,0.29798749,53839.0,53838.0,0.002]
[1725678516648,0.29798749,53839.0,53838.0,0.15056388]
[1725678516849,0.29798749,53839.0,53838.0,0.094894]
[1725678518559,0.29798749,53839.0,53838.0,0.002]
[1725678519359,0.29798749,53839.0,53838.0,0.07622651]
[1725678520955,0.29798749,53839.0,53838.0,0.16909929]
[1725678521359,0.29798749,53839.0,53838.0,0.094894]
[1725678521558,0.30598749,53839.0,53838.0,0.094894]
[1725678522652,0.30898749,53839.0,53838.0,0.094894]
[1725678523159,0.30898749,53839.0,53838.0,0.16909649]
[1725678523354,0.30898749,53839.0,53838.0,0.094894]
[1725678523553,0.30098749,53839.0,53838.0,0.093894]
[1725678523756,0.30898749,53839.0,53838.0,0.16909649]
[1725678524052,0.30898749,53839.0,53838.0,0.094894]
[1725678524258,0.30898749,53839.0,53838.0,0.16909649]
[1725678524457,0.30098749,53839.0,53838.0,0.16809649]
[1725678524756,0.30898749,53839.0,53838.0,0.16909649]
[1725678526551,0.30898749,53839.0,53838.0,0.094894]
[1725678533849,0.03197,53839.0,53838.0,0.652134]
[1725678534049,0.07382059,53849.0,53838.0,0.93240615]
[1725678534256,0.07382059,53850.0,53848.0,0.17425441]
[1725678534450,0.35162076,53851.0,53849.0,0.07425441]
[1725678534661,0.35278137,53852.0,53850.0,0.04269105]
[1725678534856,0.07382059,53852.0,53850.0,0.04269105]
[1725678535056,0.08679059,53852.0,53850.0,0.04269105]
[1725678535254,0.27896078,53851.0,53850.0,0.04269105]
[1725678535457,0.27896078,53851.0,53848.0,0.1]
[1725678535759,0.29193078,53851.0,53848.0,0.192877]
[1725678536153,0.01297,53851.0,53848.0,0.192877]
[1725678536349,0.27861135,53850.0,53848.0,0.192877]
[1725678536559,0.001,53849.0,53848.0,0.192877]
[1725678537063,0.27676933,53849.0,53848.0,0.193877]
[1725678537360,0.28973933,53849.0,53848.0,0.21826867]
[1725678537757,0.01297,53849.0,53848.0,0.19964608]
[1725678538069,0.2900432,53849.0,53848.0,0.12539167]
[1725678538369,0.2900432,53849.0,53848.0,0.21826867]
[1725678538756,0.2900432,53849.0,53848.0,0.29352308]
[1725678539764,0.2900432,53849.0,53848.0,0.21926867]
[1725678541756,0.2920432,53849.0,53848.0,0.21926867]
[1725678543154,0.2930432,53849.0,53848.0,0.21926867]
[1725678543959,0.2910432,53849.0,53848.0,0.21826867]
[1725678544157,0.2920432,53849.0,53848.0,0.21926867]
[1725678545672,0.2920432,53849.0,53848.0,0.02639167]
[1725678546762,0.3849182,53849.0,53848.0,0.02639167]
[1725678546965,1.5420382,53849.0,53848.0,0.002]
[1725678547160,1.61585879,53849.0,53848.0,0.002]
[1725678547367,1.67735879,53849.0,53848.0,0.002]
[1725678547669,1.77735879,53849.0,53848.0,0.002]
[1725678548969,1.7035382,53849.0,53848.0,0.002]
[1725678550163,0.5464182,53849.0,53848.0,0.002]
[1725678550363,0.62029749,53849.0,53848.0,0.002]
[1725678551062,0.52029749,53849.0,53848.0,0.002]
[1725678551465,0.4464182,53849.0,53848.0,0.002]
[1725678551665,0.52029749,53849.0,53848.0,0.002]
[1725678551872,0.4464182,53849.0,53848.0,0.002]
[1725678552065,0.52029749,53849.0,53848.0,0.002]
[1725678552457,0.092889,53841.0,53839.0,0.16714541]
[1725678552763,0.37871233,53840.0,53839.0,0.092891]
[1725678553058,0.1,53840.0,53839.0,0.092891]
[1725678553462,0.43410043,53840.0,53839.0,0.092891]
[1725678553671,0.44607043,53840.0,53839.0,0.094891]
[1725678553965,0.53896043,53840.0,53839.0,0.094891]
[1725678554266,0.53996043,53840.0,53839.0,0.11885991]
[1725678554663,0.38457233,53840.0,53839.0,0.11885991]
[1725678555059,0.43996043,53840.0,53839.0,0.11885991]
[1725678555765,0.43995229,53840.0,53839.0,0.11885991]
[1725678555965,0.43995229,53840.0,53839.0,0.11785991]
[1725678555966,0.38457233,53840.0,53839.0,0.11785991]
[1725678556164,0.38457233,53840.0,53839.0,0.11885991]
[1725678556165,0.44494815,53840.0,53839.0,0.11885991]
[1725678556368,0.38957233,53840.0,53839.0,0.11885991]
[1725678556575,0.44494819,53840.0,53839.0,0.11885991]
[1725678556765,0.44494819,53840.0,53839.0,0.11785991]
[1725678556960,0.44494819,53840.0,53839.0,0.11885991]
[1725678557967,0.35205819,53840.0,53839.0,0.11885991]
[1725678558767,0.35205819,53840.0,53839.0,0.21885991]
[1725678558968,0.29668233,53840.0,53839.0,0.21885991]
[1725678567079,0.35205819,53840.0,53839.0,0.21885991]
[1725678568273,0.29668233,53840.0,53839.0,0.21885991]
[1725678569682,0.35205819,53840.0,53839.0,0.21885991]
[1725678572078,0.29668233,53840.0,53839.0,0.21885991]
[1725678572378,0.3521105,53840.0,53839.0,0.21885991]
[1725678573184,0.29668233,53840.0,53839.0,0.29311432]
[1725678573886,0.35212194,53840.0,53839.0,0.35381432]
[1725678574194,0.29668233,53840.0,53839.0,0.27955991]
[1725678575475,0.35212194,53840.0,53839.0,0.27955991]
[1725678576081,0.29668233,53840.0,53839.0,0.27955991]
[1725678583879,0.29668233,53840.0,53839.0,0.17955991]
[1725678584085,0.35212194,53840.0,53839.0,0.27955991]
[1725678586500,0.29668233,53840.0,53839.0,0.27955991]
[1725678586793,0.29668233,53840.0,53839.0,0.21885991]
[1725678588192,0.29568233,53840.0,53839.0,0.21885991]
[1725678589896,0.29468233,53840.0,53839.0,0.21885991]
[1725678591090,0.29468233,53840.0,53839.0,0.12596891]
[1725678595796,0.29468233,53840.0,53839.0,0.21878692]
[1725678596296,0.29468233,53840.0,53839.0,0.12596891]
[1725678596503,0.29468233,53840.0,53839.0,0.21878692]
[1725678597396,0.29268233,53840.0,53839.0,0.35931068]
[1725678597598,0.29468233,53840.0,53839.0,0.12596891]
[1725678598196,0.29468233,53840.0,53839.0,0.21878692]
[1725678598606,0.29468233,53840.0,53839.0,0.12596891]
[1725678601793,0.29468233,53840.0,53839.0,0.36031248]
[1725678602715,0.01597,53840.0,53839.0,0.3603791]
[1725678603003,0.01846261,53847.0,53839.0,0.49692913]
[1725678603212,0.01296,53847.0,53846.0,0.1]
[1725678603404,0.40280167,53859.0,53857.0,0.092861]
[1725678603599,0.07874168,53861.0,53858.0,0.17422469]
[1725678603915,0.27961949,53860.0,53859.0,0.07422469]
[1725678604205,0.01296,53860.0,53859.0,0.17422469]
[1725678604400,0.01296,53860.0,53859.0,0.1]
[1725678604595,0.29257949,53860.0,53859.0,0.1]
[1725678606509,0.29257949,53860.0,53859.0,0.101]
[1725678606902,0.29257949,53860.0,53859.0,0.102]
[1725678610612,0.29257949,53860.0,53859.0,0.21839796]
[1725678616723,0.29257949,53860.0,53859.0,0.29262265]
[1725678617425,0.29257949,53860.0,53859.0,0.21739796]
[1725678617627,0.29257949,53860.0,53859.0,0.21839796]
[1725678618525,0.29257949,53860.0,53859.0,0.21739796]
[1725678618719,0.29257949,53860.0,53859.0,0.21839796]
[1725678623124,0.07386166,53869.0,53861.0,0.092854]
[1725678623328,0.07386166,53871.0,53870.0,0.092839]
[1725678623523,0.07386166,53872.0,53871.0,0.079877]
[1725678623726,0.3528006,53872.0,53871.0,0.179877]
[1725678624024,0.01296,53872.0,53871.0,0.179877]
[1725678624225,0.29008478,53872.0,53871.0,0.179877]
[1725678624827,0.01296,53872.0,53871.0,0.179877]
[1725678625229,0.07386166,53877.0,53871.0,1.25788]
[1725678625529,0.01296,53877.0,53876.0,0.192828]
[1725678625830,0.07386166,53880.0,53879.0,0.092823]
[1725678626029,0.07386166,53880.0,53879.0,0.192823]
[1725678626329,0.27906184,53880.0,53879.0,0.192823]
[1725678626734,0.07386166,53881.0,53879.0,0.192823]
[1725678626935,0.27704157,53880.0,53879.0,0.192823]
[1725678627731,0.27704157,53883.0,53879.0,0.192823]
[1725678627928,0.0621,53888.0,53882.0,0.1]
[1725678628138,0.0621,53888.0,53885.0,0.1]
[1725678628437,0.2767911,53887.0,53885.0,0.1]
[1725678629331,0.2767911,53887.0,53885.0,0.101]
[1725678629524,0.8335111,53887.0,53885.0,0.001]
[1725678629726,0.092819,53882.0,53878.0,0.1]
[1725678629927,0.0641,53881.0,53879.0,0.001]
[1725678630123,0.092822,53880.0,53879.0,0.001]
[1725678630426,0.38325554,53880.0,53879.0,0.001]
[1725678630631,0.091823,53879.0,53878.0,0.02408489]
[1725678630825,0.151423,53879.0,53874.0,0.1]
[1725678631026,0.0632,53878.0,53874.0,0.1]
[1725678631225,0.0632,53878.0,53877.0,0.1]
[1725678631432,0.0622,53878.0,53877.0,0.1]
[1725678631742,0.338371,53878.0,53877.0,0.1]
[1725678631927,0.351331,53878.0,53877.0,0.1]
[1725678633031,0.353331,53878.0,53877.0,0.101]
[1725678633732,0.351331,53878.0,53877.0,0.101]
[1725678633933,0.353331,53878.0,53877.0,0.102]
[1725678635339,0.38342133,53878.0,53877.0,0.102]
[1725678635535,0.4192704,53878.0,53877.0,0.102]
[1725678637633,0.4192704,53878.0,53877.0,0.1264246]
[1725678640637,0.4192704,53878.0,53877.0,0.2192516]
[1725678641943,0.4212704,53878.0,53877.0,0.2192516]
[1725678642141,0.4192704,53878.0,53877.0,0.2182516]
[1725678642339,0.4192704,53878.0,53877.0,0.2192516]
[1725678642340,0.294131,53878.0,53877.0,0.2192516]
[1725678642932,0.292131,53878.0,53877.0,0.2182516]
[1725678643149,0.294131,53878.0,53877.0,0.2192516]
[1725678644641,0.294131,53878.0,53877.0,0.2182516]
[1725678644834,0.294131,53878.0,53877.0,0.2192516]
[1725678645233,0.292131,53878.0,53877.0,0.2182516]
[1725678645440,0.294131,53878.0,53877.0,0.2192516]
[1725678649154,0.294131,53878.0,53877.0,0.0264246]
[1725678649340,0.386956,53878.0,53877.0,0.0264246]
[1725678649539,0.46078986,53878.0,53877.0,0.0264246]
[1725678649745,0.54204808,53878.0,53877.0,0.0264246]
[1725678650346,0.4130481,53878.0,53877.0,0.0244246]
[1725678650554,0.4170481,53878.0,53877.0,0.002]
[1725678651146,0.5170481,53878.0,53877.0,0.002]
[1725678651453,0.5170481,53878.0,53865.0,0.092847]
[1725678651454,0.092829,53876.0,53865.0,0.092847]
[1725678651651,0.09244534,53869.0,53865.0,0.092847]
[1725678651952,0.27881462,53868.0,53865.0,0.092847]
[1725678652249,0.092844,53867.0,53866.0,0.092846]
[1725678652438,0.28977462,53868.0,53867.0,0.092844]
[1725678652638,0.09423049,53868.0,53867.0,0.192844]
[1725678652846,0.01296,53868.0,53867.0,0.192844]
[1725678653045,0.29320032,53868.0,53867.0,0.192844]
[1725678653248,0.29520032,53868.0,53867.0,0.192844]
[1725678653545,0.37646982,53868.0,53867.0,0.092844]
[1725678653857,0.47131182,53868.0,53867.0,0.001]
[1725678654539,1.12823182,53868.0,53867.0,0.001]
[1725678654763,1.8511778,53868.0,53867.0,0.001]
[1725678655056,1.96511221,53868.0,53867.0,0.002]
[1725678655449,1.8541778,53868.0,53867.0,0.002]
[1725678656055,1.96511221,53868.0,53867.0,0.002]
[1725678656249,1.77290226,53868.0,53867.0,0.002]
[1725678657351,1.80876349,53868.0,53867.0,0.002]
[1725678657553,1.20876349,53868.0,53867.0,0.002]
[1725678657756,0.65184349,53868.0,53867.0,0.002]
[1725678658053,0.42314026,53868.0,53867.0,0.002]
[1725678658254,0.53384029,53868.0,53867.0,0.002]
[1725678658858,0.42314026,53868.0,53867.0,0.094844]
[1725678659351,0.53384029,53868.0,53867.0,0.094844]
[1725678659551,0.53383897,53868.0,53867.0,0.094844]
[1725678660452,0.42313894,53868.0,53867.0,0.094844]
[1725678660649,0.33029694,53868.0,53867.0,0.284844]
[1725678661449,0.33029694,53868.0,53867.0,0.30861492]
[1725678663057,0.30020032,53868.0,53867.0,0.30861492]
[1725678663258,0.33029671,53868.0,53867.0,0.30861492]
[1725678663753,0.33029671,53868.0,53867.0,0.21577092]
[1725678665358,0.30020032,53868.0,53867.0,0.21577092]
[1725678668667,0.29620032,53868.0,53867.0,0.21477092]
[1725678668852,0.30020032,53868.0,53867.0,0.30861492]
[1725678669258,0.30020032,53868.0,53867.0,0.30761492]
[1725678669259,0.29620032,53868.0,53867.0,0.30761492]
[1725678669459,0.30020032,53868.0,53867.0,0.30861492]
[1725678669860,0.29620032,53868.0,53867.0,0.30761492]
[1725678670063,0.30020032,53868.0,53867.0,0.30861492]
[1725678670261,0.30020032,53868.0,53867.0,0.21577092]
[1725678670457,0.30020032,53868.0,53867.0,0.02577092]
[1725678670967,0.29620032,53868.0,53867.0,0.02477092]
[1725678671170,0.30020032,53868.0,53867.0,0.02577092]
[1725678671858,0.29720032,53868.0,53867.0,0.02477092]
[1725678672164,0.30020032,53868.0,53867.0,0.02577092]
[1725678672367,0.41160738,53868.0,53867.0,0.02577092]
[1725678677676,0.56003997,53868.0,53867.0,0.02577092]
[1725678678263,0.41160738,53868.0,53867.0,0.02577092]
[1725678679169,0.55939912,53868.0,53867.0,0.02577092]
[1725678679464,0.55939912,53868.0,53867.0,0.30861492]
[1725678679465,0.41160738,53868.0,53867.0,0.30861492]
[1725678679665,0.5594481,53868.0,53867.0,0.30861492]
[1725678679870,0.41160738,53868.0,53867.0,0.30861492]
[1725678680069,0.41160738,53868.0,53867.0,0.21861492]
[1725678680466,0.30020032,53868.0,53867.0,0.36005044]
[1725678682980,0.30020032,53868.0,53867.0,0.21861492]
[1725678683280,0.30020032,53868.0,53867.0,0.36004877]
[1725678683778,0.30020032,53868.0,53867.0,0.35904877]
[1725678683983,0.30020032,53868.0,53867.0,0.36004877]
[1725678686676,0.092824,53879.0,53871.0,0.092837]
[1725678686875,0.092824,53879.0,53877.0,0.1]
[1725678687073,0.27735914,53878.0,53877.0,0.1]
[1725678687287,0.29031914,53878.0,53877.0,0.15560685]
[1725678687474,0.64344165,53878.0,53877.0,0.1]
[1725678689387,0.45867327,53878.0,53877.0,0.101]
[1725678689895,0.45867327,53878.0,53877.0,0.1]
[1725678690094,0.45867327,53878.0,53877.0,0.101]
[1725678690391,0.45867327,53878.0,53877.0,0.102]
[1725678691281,0.45867327,53878.0,53877.0,0.12642027]
[1725678692991,0.45866915,53878.0,53877.0,0.12642027]
[1725678693386,0.62492294,53878.0,53877.0,0.12642027]
[1725678694197,0.45866915,53878.0,53877.0,0.12642027]
[1725678695487,0.29031914,53878.0,53877.0,0.18202712]
[1725678695689,0.29031914,53878.0,53877.0,0.12642027]
[1725678695886,0.29031914,53878.0,53877.0,0.18201501]
[1725678702603,0.29031914,53878.0,53877.0,0.12642027]
[1725678706607,0.38314414,53878.0,53877.0,0.12642027]
[1725678707301,0.38414414,53878.0,53877.0,0.12642027]
[1725678708505,0.47650873,53878.0,53877.0,0.12642027]
[1725678709505,0.41423364,53878.0,53877.0,0.12642027]
[1725678710102,0.41423364,53878.0,53877.0,0.21924727]
[1725678710307,0.41423364,53878.0,53877.0,0.02542027]
[1725678710514,0.55249695,53878.0,53877.0,0.01831877]
[1725678710697,0.62959656,53878.0,53877.0,0.002]
[1725678712410,0.71085725,53878.0,53877.0,0.002]
[1725678713322,0.71086931,53878.0,53877.0,0.002]
[1725678714707,0.55250901,53878.0,53877.0,0.002]
[1725678716016,0.7191656,53878.0,53877.0,0.002]
[1725678717114,0.7191656,53878.0,53877.0,0.03166492]
[1725678717617,0.7191656,53878.0,53877.0,0.13166492]
[1725678717618,0.38414414,53878.0,53877.0,0.13166492]
[1725678719807,0.29131914,53878.0,53877.0,0.13166492]
[1725678720113,0.29131914,53878.0,53877.0,0.34279192]
[1725678720320,0.37257115,53878.0,53877.0,0.34279192]
[1725678720716,0.37257115,53878.0,53877.0,0.43547001]
[1725678721028,0.37257115,53878.0,53877.0,0.57689163]
[1725678721319,0.37257115,53878.0,53877.0,0.47689163]
[1725678721521,0.37257115,53878.0,53877.0,0.57689163]
[1725678721821,0.37257115,53878.0,53877.0,0.57689115]
[1725678722520,0.37257115,53878.0,53877.0,0.43547001]
[1725678723412,0.37257115,53878.0,53877.0,0.57689051]
[1725678723717,0.29131914,53878.0,53877.0,0.57689051]
[1725678725513,0.45965723,53878.0,53877.0,0.28510287]
[1725678728327,0.45965723,53878.0,53877.0,0.31576134]
[1725678729931,0.45965723,53878.0,53877.0,0.03265847]
[1725678730115,0.45965723,53878.0,53877.0,0.13265847]
[1725678730320,0.54090895,53878.0,53877.0,0.13265847]
[1725678730528,0.45965723,53878.0,53877.0,0.13265847]
[1725678731629,0.45966618,53878.0,53877.0,0.13265847]
[1725678731820,0.54091828,53878.0,53877.0,0.13265847]
[1725678732526,0.42807193,53878.0,53877.0,0.13265847]
[1725678732735,0.42807193,53878.0,53877.0,0.20684234]
[1725678733325,0.29131914,53878.0,53877.0,0.22548547]
[1725678734031,0.29131914,53878.0,53877.0,0.45957865]
[1725678735435,0.29131914,53878.0,53877.0,0.31816356]
[1725678737730,0.29131914,53878.0,53877.0,0.22548547]
[1725678739226,0.29131914,53878.0,53877.0,0.31816356]
[1725678739627,0.29131914,53878.0,53877.0,0.45957813]
[1725678740234,0.29131914,53878.0,53877.0,0.45857813]
[1725678740528,0.29131914,53878.0,53877.0,0.31816356]
[1725678740721,0.29131914,53878.0,53877.0,0.22548547]
[1725678744325,0.29131914,53878.0,53877.0,0.13265847]
[1725678744636,0.34682497,53878.0,53877.0,0.13265847]
[1725678746433,0.34682497,53878.0,53877.0,0.2067893]
[1725678747431,0.29131914,53878.0,53877.0,0.2067893]
[1725678747631,0.55069681,53878.0,53877.0,0.13265847]
[1725678748234,0.40269495,53878.0,53877.0,0.13265847]
[1725678754537,0.55069681,53878.0,53877.0,0.13265847]
[1725678755730,0.29131914,53878.0,53877.0,0.27407336]
[1725678757744,0.34690824,53878.0,53877.0,0.22544326]
[1725678758843,0.29131914,53878.0,53877.0,0.36686743]
[1725678760536,0.34690824,53878.0,53877.0,0.36686743]
[1725678762542,0.34690824,53878.0,53877.0,0.36688385]
[1725678762756,0.45966516,53878.0,53877.0,0.13265847]
[1725678766649,0.45966516,53878.0,53877.0,0.22548547]
[1725678769551,0.54091641,53878.0,53877.0,0.22548547]
[1725678769743,0.42820624,53878.0,53877.0,0.45970821]
[1725678769949,0.42820624,53878.0,53877.0,0.45970891]
[1725678770353,0.42820624,53878.0,53877.0,0.31828668]
[1725678770542,0.42820624,53878.0,53877.0,0.45970836]
[1725678773544,0.37257039,53878.0,53877.0,0.45970836]
[1725678774350,0.37257039,53878.0,53877.0,0.31828668]
[1725678776450,0.29131914,53878.0,53877.0,0.21828668]
[1725678776651,0.29131914,53878.0,53877.0,0.31828668]
[1725678777749,0.45966397,53878.0,53877.0,0.22548547]
[1725678778952,0.66364508,53878.0,53877.0,0.22548547]
[1725678780159,0.45966397,53878.0,53877.0,0.22548547]
[1725678781059,0.45966394,53878.0,53877.0,0.22548547]
[1725678781254,0.66366842,53878.0,53877.0,0.22548547]
[1725678783552,0.45966394,53878.0,53877.0,0.22548547]
[1725678784548,0.54091494,53878.0,53877.0,0.22548547]
[1725678784750,0.37257014,53878.0,53877.0,0.45970985]
[1725678785650,0.37157014,53878.0,53877.0,0.36588285]
[1725678785856,0.37257014,53878.0,53877.0,0.36688285]
[1725678786067,0.37257014,53878.0,53877.0,0.36691351]
[1725678786563,0.44676696,53878.0,53877.0,0.36591351]
[1725678786750,0.45876696,53878.0,53877.0,0.36691351]
[1725678786950,0.38457014,53878.0,53877.0,0.27408164]
[1725678790968,0.45876696,53878.0,53877.0,0.36692946]
[1725678791170,0.37751596,53878.0,53877.0,0.36692946]
[1725678791668,0.37751596,53878.0,53877.0,0.27408164]
[1725678791869,0.37751596,53878.0,53877.0,0.36692959]
[1725678794156,0.37751596,53878.0,53877.0,0.27408164]
[1725678794157,0.30331914,53878.0,53877.0,0.27408164]
[1725678795467,0.30331914,53878.0,53877.0,0.27407972]
[1725678795669,0.37751596,53878.0,53877.0,0.27407972]
[1725678796062,0.30331914,53878.0,53877.0,0.27407972]
[1725678801366,0.30331914,53878.0,53877.0,0.17407972]
[1725678801568,0.30331914,53878.0,53877.0,0.27407972]
[1725678803262,0.30331914,53878.0,53877.0,0.36690672]
[1725678803672,0.30331914,53878.0,53877.0,0.26690672]
[1725678803870,0.30331914,53878.0,53877.0,0.47831529]
[1725678804176,0.30331914,53878.0,53877.0,0.38548798]
[1725678805565,0.30331914,53878.0,53877.0,0.38547951]
[1725678806170,0.30331914,53878.0,53877.0,0.27407125]
[1725678806468,0.47034096,53878.0,53877.0,0.03265847]
[1725678808968,0.37751596,53878.0,53877.0,0.13265847]
[1725678809176,0.37751596,53878.0,53877.0,0.36689683]
[1725678809177,0.30331914,53878.0,53877.0,0.36689683]
[1725678809678,0.35892768,53878.0,53877.0,0.27408822]
[1725678809872,0.30331914,53878.0,53877.0,0.13265847]
[1725678810370,0.30331914,53878.0,53877.0,0.3668871]
[1725678814571,0.35892668,53878.0,53877.0,0.3668871]
[1725678817875,0.35892668,53878.0,53877.0,0.4597141]
[1725678818579,0.30331914,53878.0,53877.0,0.31829003]
[1725678818778,0.30331914,53878.0,53877.0,0.22548547]
[1725678818969,0.30331914,53878.0,53877.0,0.31829003]
[1725678821286,0.30331914,53878.0,53877.0,0.22548547]
[1725678822784,0.30331914,53878.0,53877.0,0.31829003]
[1725678825691,0.30331914,53878.0,53877.0,0.45971435]
[1725678825886,0.30331914,53878.0,53877.0,0.31829003]
[1725678827895,0.35893657,53878.0,53877.0,0.4597138]
[1725678828883,0.36993657,53878.0,53877.0,0.4597138]
[1725678829990,0.31431914,53878.0,53877.0,0.4597138]
[1725678830694,0.31431914,53878.0,53877.0,0.45971366]
[1725678833599,0.3699478,53878.0,53877.0,0.3669091]
[1725678834811,0.31431914,53878.0,53877.0,0.36690578]
[1725678835011,0.36995367,53878.0,53877.0,0.36690578]
[1725678835415,0.31431914,53878.0,53877.0,0.36690578]
[1725678836011,0.36996022,53878.0,53877.0,0.36690578]
[1725678838211,0.31431914,53878.0,53877.0,0.26690578]
[1725678838915,0.31431914,53878.0,53877.0,0.12549574]
[1725678838916,0.38851596,53878.0,53877.0,0.12549574]
[1725678839119,0.38851596,53878.0,53877.0,0.03265847]
[1725678839420,0.41431914,53878.0,53877.0,0.03265847]
[1725678841615,1.66394414,53878.0,53877.0,0.03265847]
[1725678841919,1.74520117,53878.0,53877.0,0.10691959]
[1725678842122,1.83794719,53878.0,53877.0,0.03265847]
[1725678843218,1.74520117,53878.0,53877.0,0.03265847]
[1725678843606,1.66394414,53878.0,53877.0,0.03265847]
[1725678843820,1.74520158,53878.0,53877.0,0.03265847]
[1725678845824,1.66394414,53878.0,53877.0,0.03265847]
[1725678846022,1.56394414,53878.0,53877.0,0.03265847]
[1725678846216,0.48840138,53878.0,53877.0,0.03265847]